[Event "Titled Tuesday Blitz February 15 Early 2022"]
[White "Samarth, J Rao"]
[Black "Urbina Quiroz, Edwin"]
[WhiteFideId "46652370"]
[BlackFideId "6500650"]
[WhiteElo "1514"]
[BlackElo "2130"]
[Result "1-0"]
[Round "06"]
[TimeControl "180+1"]
[Date "2022.02.15"]
[WhiteClock "0:01:26"]
[BlackClock "0:00:03"]

1. c4 {[%clk 0:03:00]}  e6 {[%clk 0:02:39]} 2. d4 {[%clk 0:02:59]}  d5 {[%clk 0:02:39]} 3. Nf3 {[%clk 0:02:59]}  Nf6 {[%clk 0:02:38]} 4. Bg5 {[%clk 0:02:58]}  Be7 {[%clk 0:02:37]} 5. e3 {[%clk 0:02:55]}  O-O {[%clk 0:02:37]} 6. Nc3 {[%clk 0:02:55]}  b6 {[%clk 0:02:37]} 7. Bxf6 {[%clk 0:02:54]}  Bxf6 {[%clk 0:02:38]} 8. cxd5 {[%clk 0:02:54]}  exd5 {[%clk 0:02:37]} 9. Qc2 {[%clk 0:02:55]}  c5 {[%clk 0:02:34]} 10. O-O-O {[%clk 0:02:54]}  c4 {[%clk 0:02:29]} 11. e4 {[%clk 0:02:49]}  dxe4 {[%clk 0:02:28]} 12. Qxe4 {[%clk 0:02:49]}  Nc6 {[%clk 0:02:09]} 13. Qxc6 {[%clk 0:02:47]}  Bf5 {[%clk 0:02:09]} 14. Qd5 {[%clk 0:02:44]}  Qc8 {[%clk 0:02:06]} 15. Qxc4 {[%clk 0:02:44]}  Qb7 {[%clk 0:02:04]} 16. Qd5 {[%clk 0:02:41]}  Qc8 {[%clk 0:01:49]} 17. Bd3 {[%clk 0:02:40]}  Be6 {[%clk 0:01:44]} 18. Qe4 {[%clk 0:02:38]}  g6 {[%clk 0:01:45]} 19. Ne5 {[%clk 0:02:32]}  Bxa2 {[%clk 0:01:37]} 20. Qc6 {[%clk 0:02:19]}  Bxe5 {[%clk 0:00:31]} 21. Qxc8 {[%clk 0:02:18]}  Bf4+ {[%clk 0:00:24]} 22. Kc2 {[%clk 0:02:17]}  Raxc8 {[%clk 0:00:22]} 23. Ra1 {[%clk 0:02:17]}  Bd5 {[%clk 0:00:20]} 24. Rxa7 {[%clk 0:01:59]}  Bxg2 {[%clk 0:00:19]} 25. Re1 {[%clk 0:01:58]}  Bxh2 {[%clk 0:00:16]} 26. Ree7 {[%clk 0:01:56]}  Bd6 {[%clk 0:00:14]} 27. Red7 {[%clk 0:01:55]}  Bb4 {[%clk 0:00:14]} 28. Kb3 {[%clk 0:01:55]}  Bxc3 {[%clk 0:00:12]} 29. bxc3 {[%clk 0:01:55]}  Bc6 {[%clk 0:00:11]} 30. Re7 {[%clk 0:01:54]}  Bd5+ {[%clk 0:00:10]} 31. c4 {[%clk 0:01:54]}  Be6 {[%clk 0:00:10]} 32. d5 {[%clk 0:01:54]}  Bg4 {[%clk 0:00:09]} 33. Rab7 {[%clk 0:01:51]}  Rb8 {[%clk 0:00:09]} 34. Kb4 {[%clk 0:01:47]}  h5 {[%clk 0:00:09]} 35. Be4 {[%clk 0:01:43]}  h4 {[%clk 0:00:10]} 36. d6 {[%clk 0:01:43]}  Rfd8 {[%clk 0:00:08]} 37. Rbc7 {[%clk 0:01:32]}  Rxd6 {[%clk 0:00:07]} 38. Rxf7 {[%clk 0:01:32]}  Be6 {[%clk 0:00:05]} 39. Rg7+ {[%clk 0:01:32]}  Kf8 {[%clk 0:00:04]} 40. Rxg6 {[%clk 0:01:29]}  h3 {[%clk 0:00:04]} 41. Rf6+ {[%clk 0:01:26]}  Ke8 {[%clk 0:00:03]} 42. Rh6 {[%clk 0:01:26]} 1-0


[Site "https://www.chess.com"]

[Event "Titled Tuesday Blitz February 15 Early 2022"]
[White "Sarana, Alexey"]
[Black "Sjugirov, Sanan"]
[WhiteFideId "24133795"]
[BlackFideId "4189302"]
[WhiteElo "2665"]
[BlackElo "2602"]
[Result "1-0"]
[Round "06"]
[TimeControl "180+1"]
[Date "2022.02.15"]
[WhiteClock "0:00:22"]
[BlackClock "0:00:04"]

1. d4 {[%clk 0:02:40]}  d5 {[%clk 0:02:57]} 2. c4 {[%clk 0:02:39]}  e6 {[%clk 0:02:57]} 3. Nc3 {[%clk 0:02:39]}  Nf6 {[%clk 0:02:57]} 4. cxd5 {[%clk 0:02:40]}  exd5 {[%clk 0:02:58]} 5. Bg5 {[%clk 0:02:40]}  c6 {[%clk 0:02:58]} 6. e3 {[%clk 0:02:41]}  h6 {[%clk 0:02:59]} 7. Bf4 {[%clk 0:02:39]}  Bf5 {[%clk 0:02:51]} 8. Bd3 {[%clk 0:02:27]}  Bxd3 {[%clk 0:02:50]} 9. Qxd3 {[%clk 0:02:28]}  Bd6 {[%clk 0:02:50]} 10. Nge2 {[%clk 0:02:28]}  O-O {[%clk 0:02:49]} 11. O-O {[%clk 0:02:28]}  Re8 {[%clk 0:02:49]} 12. Rab1 {[%clk 0:02:26]}  Bxf4 {[%clk 0:02:44]} 13. Nxf4 {[%clk 0:02:26]}  Nbd7 {[%clk 0:02:45]} 14. b4 {[%clk 0:02:24]}  b5 {[%clk 0:02:43]} 15. a4 {[%clk 0:02:24]}  a6 {[%clk 0:02:40]} 16. a5 {[%clk 0:02:24]}  Nf8 {[%clk 0:02:11]} 17. Rfc1 {[%clk 0:02:22]}  Ne6 {[%clk 0:02:09]} 18. Nce2 {[%clk 0:02:20]}  Qd6 {[%clk 0:02:05]} 19. Nxe6 {[%clk 0:02:18]}  Rxe6 {[%clk 0:02:06]} 20. Rc2 {[%clk 0:02:13]}  Ne4 {[%clk 0:01:55]} 21. Ng3 {[%clk 0:01:52]}  Nxg3 {[%clk 0:01:40]} 22. hxg3 {[%clk 0:01:53]}  Rd8 {[%clk 0:01:37]} 23. Rc5 {[%clk 0:01:51]}  Qe7 {[%clk 0:01:36]} 24. Rbc1 {[%clk 0:01:50]}  Rdd6 {[%clk 0:01:36]} 25. Qf5 {[%clk 0:01:50]}  g6 {[%clk 0:01:33]} 26. Qh3 {[%clk 0:01:49]}  Kg7 {[%clk 0:01:32]} 27. g4 {[%clk 0:01:50]}  Qg5 {[%clk 0:01:22]} 28. Qg3 {[%clk 0:01:49]}  h5 {[%clk 0:01:18]} 29. gxh5 {[%clk 0:01:08]}  Qxg3 {[%clk 0:01:17]} 30. fxg3 {[%clk 0:01:09]}  gxh5 {[%clk 0:01:17]} 31. R5c3 {[%clk 0:01:09]}  f5 {[%clk 0:01:11]} 32. Rf1 {[%clk 0:00:57]}  Kg6 {[%clk 0:01:11]} 33. Rf3 {[%clk 0:00:58]}  Kg5 {[%clk 0:01:10]} 34. Kh2 {[%clk 0:00:57]}  Re4 {[%clk 0:01:09]} 35. Rc1 {[%clk 0:00:57]}  Rf6 {[%clk 0:01:04]} 36. Rcf1 {[%clk 0:00:56]}  Ree6 {[%clk 0:01:02]} 37. Kh3 {[%clk 0:00:55]}  Re4 {[%clk 0:01:01]} 38. Rc1 {[%clk 0:00:55]}  Ree6 {[%clk 0:01:01]} 39. Rc3 {[%clk 0:00:55]}  Re4 {[%clk 0:01:00]} 40. Rf4 {[%clk 0:00:55]}  Ree6 {[%clk 0:00:59]} 41. Kh2 {[%clk 0:00:54]}  Re8 {[%clk 0:00:58]} 42. Kg1 {[%clk 0:00:54]}  Ree6 {[%clk 0:00:58]} 43. Kf2 {[%clk 0:00:55]}  Re8 {[%clk 0:00:57]} 44. Rh4 {[%clk 0:00:53]}  Re4 {[%clk 0:00:55]} 45. Kf3 {[%clk 0:00:45]}  Rfe6 {[%clk 0:00:48]} 46. Rf4 {[%clk 0:00:43]}  Kg6 {[%clk 0:00:42]} 47. Kf2 {[%clk 0:00:42]}  Kg5 {[%clk 0:00:42]} 48. Rf3 {[%clk 0:00:43]}  Kg6 {[%clk 0:00:41]} 49. Rc1 {[%clk 0:00:42]}  Kg5 {[%clk 0:00:41]} 50. Rh1 {[%clk 0:00:42]}  Kg6 {[%clk 0:00:40]} 51. Rh4 {[%clk 0:00:42]}  Kg5 {[%clk 0:00:33]} 52. Rhf4 {[%clk 0:00:40]}  Rf6 {[%clk 0:00:27]} 53. Rxe4 {[%clk 0:00:29]}  dxe4 {[%clk 0:00:23]} 54. Rf4 {[%clk 0:00:29]}  Kg6 {[%clk 0:00:18]} 55. Rh4 {[%clk 0:00:29]}  Rd6 {[%clk 0:00:13]} 56. Ke2 {[%clk 0:00:29]}  Kg5 {[%clk 0:00:12]} 57. Kd2 {[%clk 0:00:28]}  Kg6 {[%clk 0:00:12]} 58. Ke2 {[%clk 0:00:21]}  Kg5 {[%clk 0:00:13]} 59. Ke1 {[%clk 0:00:21]}  Kg6 {[%clk 0:00:13]} 60. Kf2 {[%clk 0:00:22]}  Kg5 {[%clk 0:00:14]} 61. Rh1 {[%clk 0:00:22]}  Kg6 {[%clk 0:00:14]} 62. Rc1 {[%clk 0:00:22]}  Kg5 {[%clk 0:00:14]} 63. Rc5 {[%clk 0:00:23]}  Kg4 {[%clk 0:00:12]} 64. Re5 {[%clk 0:00:22]}  h4 {[%clk 0:00:04]} 65. gxh4 {[%clk 0:00:22]}  f4 {[%clk 0:00:04]} 66. Rxe4 {[%clk 0:00:22]} 1-0


[Site "https://www.chess.com"]

[Event "Titled Tuesday Blitz February 15 Early 2022"]
[White "Sargsyan, Anna M."]
[Black "Avazkhonov, Alikhon"]
[WhiteFideId "13308130"]
[BlackFideId "14208504"]
[WhiteElo "2271"]
[BlackElo "1739"]
[Result "1-0"]
[Round "06"]
[TimeControl "180+1"]
[Date "2022.02.15"]
[WhiteClock "0:01:18"]
[BlackClock "0:00:08"]

1. d4 {[%clk 0:03:00]}  d5 {[%clk 0:02:51]} 2. c4 {[%clk 0:03:00]}  e6 {[%clk 0:02:51]} 3. Nc3 {[%clk 0:02:52]}  c6 {[%clk 0:02:51]} 4. e3 {[%clk 0:02:51]}  f5 {[%clk 0:02:50]} 5. f3 {[%clk 0:02:46]}  Nf6 {[%clk 0:02:46]} 6. Qc2 {[%clk 0:02:46]}  Bd6 {[%clk 0:02:42]} 7. Bd2 {[%clk 0:02:46]}  O-O {[%clk 0:02:41]} 8. O-O-O {[%clk 0:02:44]}  a5 {[%clk 0:02:34]} 9. e4 {[%clk 0:02:41]}  Bb4 {[%clk 0:01:48]} 10. e5 {[%clk 0:02:37]}  Ne8 {[%clk 0:01:42]} 11. c5 {[%clk 0:02:31]}  Nd7 {[%clk 0:01:33]} 12. Bd3 {[%clk 0:02:28]}  b5 {[%clk 0:01:22]} 13. cxb6 {[%clk 0:02:28]}  Qxb6 {[%clk 0:01:19]} 14. Nge2 {[%clk 0:02:27]}  Nc7 {[%clk 0:01:13]} 15. Kb1 {[%clk 0:02:25]}  Ba6 {[%clk 0:01:12]} 16. Bxa6 {[%clk 0:02:16]}  Rxa6 {[%clk 0:01:08]} 17. g4 {[%clk 0:02:10]}  fxg4 {[%clk 0:01:00]} 18. fxg4 {[%clk 0:02:10]}  Rb8 {[%clk 0:00:54]} 19. Rhf1 {[%clk 0:02:06]}  Nb5 {[%clk 0:00:45]} 20. Nxb5 {[%clk 0:02:04]}  Qxb5 {[%clk 0:00:42]} 21. Bc1 {[%clk 0:02:04]}  a4 {[%clk 0:00:38]} 22. Nf4 {[%clk 0:02:04]}  a3 {[%clk 0:00:36]} 23. b3 {[%clk 0:02:00]}  c5 {[%clk 0:00:34]} 24. Qf2 {[%clk 0:01:55]}  Rf8 {[%clk 0:00:28]} 25. Qe2 {[%clk 0:01:49]}  c4 {[%clk 0:00:26]} 26. Nh5 {[%clk 0:01:38]}  Rb8 {[%clk 0:00:22]} 27. Qf2 {[%clk 0:01:34]}  Bf8 {[%clk 0:00:16]} 28. Qf7+ {[%clk 0:01:31]}  Kh8 {[%clk 0:00:16]} 29. Rf3 {[%clk 0:01:28]}  Rab6 {[%clk 0:00:08]} 30. Rdf1 {[%clk 0:01:18]}  cxb3 {[%clk 0:00:08]} 31. Qxf8+ {[%clk 0:01:18]} 1-0


[Site "https://www.chess.com"]

[Event "Titled Tuesday Blitz February 15 Early 2022"]
[White "Sarkar, Justin"]
[Black "Kejzar, Petra"]
[WhiteFideId "2010011"]
[BlackFideId "14610213"]
[WhiteElo "2038"]
[BlackElo "2006"]
[Result "1-0"]
[Round "06"]
[TimeControl "180+1"]
[Date "2022.02.15"]
[WhiteClock "0:00:03"]
[BlackClock "0:00:01"]

1. e4 {[%clk 0:02:39]}  c5 {[%clk 0:02:57]} 2. Nf3 {[%clk 0:02:38]}  e6 {[%clk 0:02:57]} 3. d4 {[%clk 0:02:38]}  cxd4 {[%clk 0:02:58]} 4. Nxd4 {[%clk 0:02:38]}  Nf6 {[%clk 0:02:58]} 5. Nc3 {[%clk 0:02:37]}  d6 {[%clk 0:02:59]} 6. Be2 {[%clk 0:02:16]}  Be7 {[%clk 0:02:59]} 7. O-O {[%clk 0:02:15]}  O-O {[%clk 0:03:00]} 8. Kh1 {[%clk 0:02:14]}  a6 {[%clk 0:03:00]} 9. f4 {[%clk 0:02:10]}  Qc7 {[%clk 0:03:01]} 10. a4 {[%clk 0:02:08]}  b6 {[%clk 0:02:56]} 11. Bf3 {[%clk 0:02:00]}  Bb7 {[%clk 0:02:56]} 12. e5 {[%clk 0:01:51]}  Nfd7 {[%clk 0:02:43]} 13. exd6 {[%clk 0:01:49]}  Bxd6 {[%clk 0:02:39]} 14. Ndb5 {[%clk 0:01:28]}  axb5 {[%clk 0:02:13]} 15. Nxb5 {[%clk 0:01:26]}  Bxf3 {[%clk 0:02:13]} 16. Qxf3 {[%clk 0:01:15]}  Qc6 {[%clk 0:01:58]} 17. Nxd6 {[%clk 0:01:02]}  Ra6 {[%clk 0:01:32]} 18. Qxc6 {[%clk 0:00:51]}  Nxc6 {[%clk 0:01:32]} 19. Be3 {[%clk 0:00:49]}  Rfa8 {[%clk 0:01:25]} 20. b3 {[%clk 0:00:46]}  Nb4 {[%clk 0:01:25]} 21. Rac1 {[%clk 0:00:39]}  Nd5 {[%clk 0:01:24]} 22. Bd2 {[%clk 0:00:35]}  N7f6 {[%clk 0:01:21]} 23. c4 {[%clk 0:00:33]}  Ne7 {[%clk 0:01:18]} 24. Bc3 {[%clk 0:00:31]}  Rd8 {[%clk 0:01:14]} 25. Bxf6 {[%clk 0:00:26]}  gxf6 {[%clk 0:01:12]} 26. Rfd1 {[%clk 0:00:26]}  Raa8 {[%clk 0:01:06]} 27. g3 {[%clk 0:00:18]}  f5 {[%clk 0:01:03]} 28. Kg2 {[%clk 0:00:16]}  Nd5 {[%clk 0:01:00]} 29. Nxf5 {[%clk 0:00:09]}  exf5 {[%clk 0:00:42]} 30. Rxd5 {[%clk 0:00:07]}  Re8 {[%clk 0:00:41]} 31. Rxf5 {[%clk 0:00:06]}  Re2+ {[%clk 0:00:41]} 32. Kf3 {[%clk 0:00:05]}  Rxh2 {[%clk 0:00:39]} 33. Rb5 {[%clk 0:00:04]}  Rd8 {[%clk 0:00:35]} 34. Rc3 {[%clk 0:00:03]}  f5 {[%clk 0:00:32]} 35. Rxb6 {[%clk 0:00:02]}  Rd1 {[%clk 0:00:32]} 36. Rb8+ {[%clk 0:00:02]}  Kf7 {[%clk 0:00:31]} 37. Rb7+ {[%clk 0:00:02]}  Kg6 {[%clk 0:00:31]} 38. Rb6+ {[%clk 0:00:02]}  Kg7 {[%clk 0:00:30]} 39. c5 {[%clk 0:00:02]}  Rf1+ {[%clk 0:00:21]} 40. Ke3 {[%clk 0:00:02]}  Rg2 {[%clk 0:00:20]} 41. Kd4 {[%clk 0:00:02]}  Rd2+ {[%clk 0:00:17]} 42. Kc4 {[%clk 0:00:02]}  h5 {[%clk 0:00:12]} 43. c6 {[%clk 0:00:03]}  h4 {[%clk 0:00:11]} 44. c7 {[%clk 0:00:03]}  hxg3 {[%clk 0:00:06]} 45. Rxg3+ {[%clk 0:00:03]}  Kf7 {[%clk 0:00:03]} 46. Rc3 {[%clk 0:00:03]}  Rxf4+ {[%clk 0:00:03]} 47. Kb5 {[%clk 0:00:03]}  Rd5+ {[%clk 0:00:01]} 48. Ka6 {[%clk 0:00:03]} 1-0


[Site "https://www.chess.com"]

[Event "Titled Tuesday Blitz February 15 Early 2022"]
[White "Senthil Maran K"]
[Black "Willow, Jonah B"]
[WhiteFideId "25035681"]
[BlackFideId "438804"]
[WhiteElo "2194"]
[BlackElo "2261"]
[Result "0-1"]
[Round "06"]
[TimeControl "180+1"]
[Date "2022.02.15"]
[WhiteClock "0:00:19"]
[BlackClock "0:01:42"]

1. d4 {[%clk 0:02:55]}  Nf6 {[%clk 0:03:00]} 2. Nf3 {[%clk 0:02:55]}  e6 {[%clk 0:03:00]} 3. g3 {[%clk 0:02:55]}  c5 {[%clk 0:03:00]} 4. Bg2 {[%clk 0:02:55]}  Nc6 {[%clk 0:02:59]} 5. O-O {[%clk 0:02:55]}  cxd4 {[%clk 0:02:59]} 6. Nxd4 {[%clk 0:02:56]}  Bc5 {[%clk 0:03:00]} 7. Nb3 {[%clk 0:02:54]}  Be7 {[%clk 0:03:00]} 8. c4 {[%clk 0:02:49]}  O-O {[%clk 0:03:01]} 9. Nc3 {[%clk 0:02:49]}  Na5 {[%clk 0:02:56]} 10. Nxa5 {[%clk 0:02:21]}  Qxa5 {[%clk 0:02:57]} 11. Qb3 {[%clk 0:02:22]}  a6 {[%clk 0:02:46]} 12. Be3 {[%clk 0:01:58]}  d6 {[%clk 0:02:47]} 13. Bb6 {[%clk 0:01:53]}  Qh5 {[%clk 0:02:47]} 14. Rad1 {[%clk 0:01:52]}  Bd7 {[%clk 0:02:41]} 15. Bc7 {[%clk 0:01:48]}  Ne8 {[%clk 0:02:36]} 16. Qxb7 {[%clk 0:01:41]}  Nxc7 {[%clk 0:02:18]} 17. Qxc7 {[%clk 0:01:26]}  Rad8 {[%clk 0:02:18]} 18. Bc6 {[%clk 0:01:13]}  Qc5 {[%clk 0:02:13]} 19. Qxd7 {[%clk 0:00:59]}  Rxd7 {[%clk 0:02:13]} 20. Bxd7 {[%clk 0:01:00]}  Qxc4 {[%clk 0:02:14]} 21. Ba4 {[%clk 0:00:53]}  d5 {[%clk 0:02:12]} 22. Bb3 {[%clk 0:00:52]}  Qc7 {[%clk 0:02:11]} 23. e4 {[%clk 0:00:51]}  dxe4 {[%clk 0:02:08]} 24. Nxe4 {[%clk 0:00:52]}  Qe5 {[%clk 0:02:09]} 25. Rfe1 {[%clk 0:00:50]}  Qxb2 {[%clk 0:02:07]} 26. Nd6 {[%clk 0:00:45]}  Bxd6 {[%clk 0:01:54]} 27. Rxd6 {[%clk 0:00:46]}  a5 {[%clk 0:01:55]} 28. Ra6 {[%clk 0:00:28]}  Qc3 {[%clk 0:01:51]} 29. Rd1 {[%clk 0:00:27]}  h5 {[%clk 0:01:50]} 30. Rd7 {[%clk 0:00:24]}  h4 {[%clk 0:01:48]} 31. Kg2 {[%clk 0:00:20]}  Qe5 {[%clk 0:01:46]} 32. Raa7 {[%clk 0:00:19]}  Qe4+ {[%clk 0:01:44]} 33. Kh3 {[%clk 0:00:20]}  Qf5+ {[%clk 0:01:44]} 34. Kg2 {[%clk 0:00:19]}  h3+ {[%clk 0:01:44]} 35. Kg1 {[%clk 0:00:19]}  Qf3 {[%clk 0:01:42]} 0-1


[Site "https://www.chess.com"]

[Event "Titled Tuesday Blitz February 15 Early 2022"]
[White "Shton, Roman"]
[Black "Sovetbekova, Nurai"]
[WhiteFideId "14137461"]
[BlackFideId "13801910"]
[WhiteElo "2038"]
[BlackElo "1545"]
[Result "0-1"]
[Round "06"]
[TimeControl "180+1"]
[Date "2022.02.15"]
[WhiteClock "0:01:43"]
[BlackClock "0:00:08"]

1. d4 {[%clk 0:02:59]}  Nf6 {[%clk 0:02:59]} 2. Nf3 {[%clk 0:02:58]}  g6 {[%clk 0:03:00]} 3. c4 {[%clk 0:02:59]}  Bg7 {[%clk 0:03:00]} 4. Nc3 {[%clk 0:03:00]}  d5 {[%clk 0:02:58]} 5. cxd5 {[%clk 0:03:01]}  Nxd5 {[%clk 0:02:57]} 6. e4 {[%clk 0:03:02]}  Nxc3 {[%clk 0:02:57]} 7. bxc3 {[%clk 0:03:02]}  c5 {[%clk 0:02:57]} 8. Be2 {[%clk 0:03:03]}  Nc6 {[%clk 0:02:51]} 9. Be3 {[%clk 0:03:02]}  Qc7 {[%clk 0:02:30]} 10. Rc1 {[%clk 0:03:01]}  O-O {[%clk 0:02:18]} 11. d5 {[%clk 0:03:01]}  Ne5 {[%clk 0:02:11]} 12. O-O {[%clk 0:03:00]}  c4 {[%clk 0:02:03]} 13. Bd4 {[%clk 0:02:57]}  Rd8 {[%clk 0:01:59]} 14. Qa4 {[%clk 0:02:48]}  Nxf3+ {[%clk 0:01:49]} 15. Bxf3 {[%clk 0:02:48]}  e6 {[%clk 0:01:48]} 16. Bxg7 {[%clk 0:02:42]}  Kxg7 {[%clk 0:01:49]} 17. Rcd1 {[%clk 0:02:34]}  a6 {[%clk 0:01:42]} 18. e5 {[%clk 0:02:11]}  exd5 {[%clk 0:01:36]} 19. Rxd5 {[%clk 0:02:06]}  Rxd5 {[%clk 0:00:58]} 20. Bxd5 {[%clk 0:02:07]}  b5 {[%clk 0:00:57]} 21. Qa3 {[%clk 0:02:03]}  Bb7 {[%clk 0:00:50]} 22. Bxb7 {[%clk 0:02:03]}  Qxb7 {[%clk 0:00:51]} 23. Qd6 {[%clk 0:02:04]}  Re8 {[%clk 0:00:47]} 24. Qf6+ {[%clk 0:02:03]}  Kg8 {[%clk 0:00:44]} 25. Rd1 {[%clk 0:02:04]}  Qe4 {[%clk 0:00:39]} 26. f4 {[%clk 0:01:49]}  Qe3+ {[%clk 0:00:28]} 27. Kf1 {[%clk 0:01:49]}  Qxc3 {[%clk 0:00:13]} 28. Rd8 {[%clk 0:01:49]}  Rxd8 {[%clk 0:00:09]} 29. Qxd8+ {[%clk 0:01:50]}  Kg7 {[%clk 0:00:10]} 30. Qf6+ {[%clk 0:01:51]}  Kg8 {[%clk 0:00:10]} 31. Qd8+ {[%clk 0:01:50]}  Kg7 {[%clk 0:00:10]} 32. Qf6+ {[%clk 0:01:51]}  Kg8 {[%clk 0:00:11]} 33. Kf2 {[%clk 0:01:52]}  Qd2+ {[%clk 0:00:10]} 34. Kf3 {[%clk 0:01:52]}  Qd3+ {[%clk 0:00:11]} 35. Kg4 {[%clk 0:01:52]}  Qe2+ {[%clk 0:00:11]} 36. Kg3 {[%clk 0:01:52]}  Qe3+ {[%clk 0:00:11]} 37. Kh4 {[%clk 0:01:52]}  Qf2+ {[%clk 0:00:10]} 38. Kg4 {[%clk 0:01:50]}  Qxg2+ {[%clk 0:00:10]} 39. Kh4 {[%clk 0:01:50]}  Qxh2+ {[%clk 0:00:10]} 40. Kg4 {[%clk 0:01:51]}  Qh5+ {[%clk 0:00:10]} 41. Kg3 {[%clk 0:01:51]}  Qf5 {[%clk 0:00:09]} 42. Qd8+ {[%clk 0:01:50]}  Kg7 {[%clk 0:00:10]} 43. Qe7 {[%clk 0:01:48]}  Qe6 {[%clk 0:00:08]} 44. Qc5 {[%clk 0:01:46]}  h5 {[%clk 0:00:08]} 45. Kf2 {[%clk 0:01:43]}  h4 {[%clk 0:00:08]} 46. Kg2 {[%clk 0:01:43]}  h3+ {[%clk 0:00:08]} 47. Kh2 {[%clk 0:01:44]}  Qg4 {[%clk 0:00:08]} 48. Qd6 {[%clk 0:01:43]}  Qg2# {[%clk 0:00:08]} 0-1


[Site "https://www.chess.com"]

[Event "Titled Tuesday Blitz February 15 Early 2022"]
[White "Shtyka, Sergey"]
[Black "Iljin, Timofey"]
[WhiteFideId "4138465"]
[BlackFideId "14110180"]
[WhiteElo "2014"]
[BlackElo "2396"]
[Result "1-0"]
[Round "06"]
[TimeControl "180+1"]
[Date "2022.02.15"]
[WhiteClock "0:00:28"]
[BlackClock "0:00:16"]

1. e4 {[%clk 0:03:00]}  e5 {[%clk 0:03:00]} 2. Nf3 {[%clk 0:03:00]}  Nc6 {[%clk 0:03:00]} 3. Nc3 {[%clk 0:03:00]}  Nf6 {[%clk 0:03:00]} 4. Bb5 {[%clk 0:03:00]}  Bd6 {[%clk 0:02:59]} 5. O-O {[%clk 0:03:00]}  O-O {[%clk 0:02:59]} 6. h3 {[%clk 0:02:58]}  h6 {[%clk 0:02:59]} 7. Be2 {[%clk 0:02:56]}  Nd4 {[%clk 0:02:55]} 8. d3 {[%clk 0:02:53]}  c6 {[%clk 0:02:49]} 9. Nxd4 {[%clk 0:02:52]}  exd4 {[%clk 0:02:50]} 10. Nb1 {[%clk 0:02:52]}  Bc5 {[%clk 0:02:44]} 11. f4 {[%clk 0:02:50]}  d5 {[%clk 0:02:44]} 12. e5 {[%clk 0:02:50]}  Nd7 {[%clk 0:02:40]} 13. Nd2 {[%clk 0:02:47]}  Re8 {[%clk 0:02:35]} 14. Nf3 {[%clk 0:02:40]}  Nf8 {[%clk 0:02:31]} 15. a3 {[%clk 0:02:31]}  a5 {[%clk 0:02:30]} 16. Bd2 {[%clk 0:02:29]}  Ng6 {[%clk 0:02:20]} 17. Qe1 {[%clk 0:02:26]}  f6 {[%clk 0:02:14]} 18. Qg3 {[%clk 0:02:10]}  Kh7 {[%clk 0:02:06]} 19. Rae1 {[%clk 0:01:57]}  Bf5 {[%clk 0:01:59]} 20. h4 {[%clk 0:01:31]}  Qc7 {[%clk 0:01:47]} 21. h5 {[%clk 0:01:29]}  Nh8 {[%clk 0:01:43]} 22. Nh4 {[%clk 0:01:29]}  Bd7 {[%clk 0:01:25]} 23. Bg4 {[%clk 0:01:27]}  Bxg4 {[%clk 0:01:16]} 24. Qxg4 {[%clk 0:01:26]}  Qc8 {[%clk 0:01:16]} 25. e6 {[%clk 0:01:23]}  Qc7 {[%clk 0:01:09]} 26. Rf3 {[%clk 0:01:16]}  Bf8 {[%clk 0:00:52]} 27. Rg3 {[%clk 0:01:08]}  c5 {[%clk 0:00:47]} 28. Nf5 {[%clk 0:01:07]}  c4 {[%clk 0:00:35]} 29. e7 {[%clk 0:01:04]}  g5 {[%clk 0:00:18]} 30. hxg6+ {[%clk 0:00:59]}  Kg8 {[%clk 0:00:18]} 31. exf8=Q+ {[%clk 0:00:57]}  Rxf8 {[%clk 0:00:19]} 32. Nxh6+ {[%clk 0:00:54]}  Kg7 {[%clk 0:00:19]} 33. Re7+ {[%clk 0:00:43]}  Qxe7 {[%clk 0:00:17]} 34. Nf5+ {[%clk 0:00:43]}  Kg8 {[%clk 0:00:17]} 35. Nxe7+ {[%clk 0:00:43]}  Kg7 {[%clk 0:00:18]} 36. Nf5+ {[%clk 0:00:43]}  Kg8 {[%clk 0:00:18]} 37. g7 {[%clk 0:00:42]}  Rfe8 {[%clk 0:00:18]} 38. gxh8=Q+ {[%clk 0:00:42]}  Kf7 {[%clk 0:00:18]} 39. Nd6+ {[%clk 0:00:33]}  Ke7 {[%clk 0:00:18]} 40. Nxe8 {[%clk 0:00:33]}  Rxe8 {[%clk 0:00:18]} 41. Qgg7+ {[%clk 0:00:32]}  Kd6 {[%clk 0:00:18]} 42. Qxe8 {[%clk 0:00:31]}  Kc5 {[%clk 0:00:16]} 43. Bxa5 {[%clk 0:00:29]}  b6 {[%clk 0:00:16]} 44. Bb4# {[%clk 0:00:28]} 1-0


[Site "https://www.chess.com"]

[Event "Titled Tuesday Blitz February 15 Early 2022"]
[White "Shukhman, Anna"]
[Black "Soderstrom, Adrian"]
[WhiteFideId "54180058"]
[BlackFideId "1745786"]
[WhiteElo "1628"]
[BlackElo "2107"]
[Result "1-0"]
[Round "06"]
[TimeControl "180+1"]
[Date "2022.02.15"]
[WhiteClock "0:00:09"]
[BlackClock "0:00:02"]

1. e4 {[%clk 0:03:00]}  e5 {[%clk 0:03:00]} 2. Nf3 {[%clk 0:03:00]}  Nc6 {[%clk 0:03:00]} 3. d4 {[%clk 0:02:53]}  exd4 {[%clk 0:03:00]} 4. Nxd4 {[%clk 0:02:53]}  Qh4 {[%clk 0:02:52]} 5. Nc3 {[%clk 0:02:43]}  Bb4 {[%clk 0:02:51]} 6. Be2 {[%clk 0:01:53]}  Qxe4 {[%clk 0:02:48]} 7. Nxc6 {[%clk 0:01:52]}  Bxc3+ {[%clk 0:02:40]} 8. bxc3 {[%clk 0:01:51]}  dxc6 {[%clk 0:02:38]} 9. O-O {[%clk 0:01:51]}  Be6 {[%clk 0:02:38]} 10. Bf3 {[%clk 0:01:46]}  Qg6 {[%clk 0:02:36]} 11. Rb1 {[%clk 0:01:43]}  Ne7 {[%clk 0:02:13]} 12. Ba3 {[%clk 0:01:42]}  Nd5 {[%clk 0:02:09]} 13. Rxb7 {[%clk 0:01:24]}  Rd8 {[%clk 0:00:58]} 14. Re1 {[%clk 0:00:57]}  Ne7 {[%clk 0:00:54]} 15. Qe2 {[%clk 0:00:52]}  Qf6 {[%clk 0:00:40]} 16. Rxc7 {[%clk 0:00:51]}  Rd7 {[%clk 0:00:38]} 17. Rxd7 {[%clk 0:00:47]}  Kxd7 {[%clk 0:00:39]} 18. Qa6 {[%clk 0:00:42]}  Rc8 {[%clk 0:00:32]} 19. Bxe7 {[%clk 0:00:37]}  Qxe7 {[%clk 0:00:32]} 20. Rd1+ {[%clk 0:00:36]}  Ke8 {[%clk 0:00:31]} 21. Bxc6+ {[%clk 0:00:29]}  Kf8 {[%clk 0:00:31]} 22. Bf3 {[%clk 0:00:28]}  g6 {[%clk 0:00:30]} 23. Qa5 {[%clk 0:00:22]}  Kg8 {[%clk 0:00:28]} 24. Qe5 {[%clk 0:00:22]}  Qa3 {[%clk 0:00:24]} 25. Bd5 {[%clk 0:00:20]}  Rd8 {[%clk 0:00:21]} 26. c4 {[%clk 0:00:19]}  Qxa2 {[%clk 0:00:18]} 27. h4 {[%clk 0:00:18]}  Qxc2 {[%clk 0:00:16]} 28. Re1 {[%clk 0:00:17]}  Qf5 {[%clk 0:00:15]} 29. Qxf5 {[%clk 0:00:16]}  Bxf5 {[%clk 0:00:16]} 30. Ra1 {[%clk 0:00:16]}  Rd7 {[%clk 0:00:15]} 31. Bf3 {[%clk 0:00:16]}  Be6 {[%clk 0:00:15]} 32. c5 {[%clk 0:00:16]}  h5 {[%clk 0:00:14]} 33. c6 {[%clk 0:00:15]}  Rc7 {[%clk 0:00:15]} 34. Rb1 {[%clk 0:00:15]}  Bc8 {[%clk 0:00:12]} 35. Rb8 {[%clk 0:00:14]}  Kg7 {[%clk 0:00:12]} 36. Kf1 {[%clk 0:00:12]}  Ba6+ {[%clk 0:00:11]} 37. Ke1 {[%clk 0:00:12]}  Kf6 {[%clk 0:00:11]} 38. Kd2 {[%clk 0:00:12]}  Ke5 {[%clk 0:00:11]} 39. Kc3 {[%clk 0:00:12]}  Kd6 {[%clk 0:00:10]} 40. Kb4 {[%clk 0:00:12]}  Bc8 {[%clk 0:00:05]} 41. Ka5 {[%clk 0:00:12]}  Kc5 {[%clk 0:00:05]} 42. Rb2 {[%clk 0:00:11]}  a6 {[%clk 0:00:04]} 43. Rc2+ {[%clk 0:00:11]}  Kd6 {[%clk 0:00:05]} 44. Kb6 {[%clk 0:00:11]}  Re7 {[%clk 0:00:04]} 45. Rd2+ {[%clk 0:00:10]}  Ke6 {[%clk 0:00:04]} 46. c7 {[%clk 0:00:10]}  Kf6 {[%clk 0:00:02]} 47. Rd8 {[%clk 0:00:09]}  Re6+ {[%clk 0:00:02]} 48. Ka7 {[%clk 0:00:09]}  Rc6 {[%clk 0:00:01]} 49. Rxc8 {[%clk 0:00:09]}  Rb6 {[%clk 0:00:02]} 50. Kxb6 {[%clk 0:00:09]} 1-0


[Site "https://www.chess.com"]